[Event "*** SCC Grand Prix: Titled Tuesday Blitz"]
[Site "Chess.com"]
[Date "2020.10.13"]
[Round "6"]
[White "ApacheSVD"]
[Black "paulrusan"]
[Result "1-0"]
[WhiteElo "2396"]
[BlackElo "2221"]
[TimeControl "180+1"]
[EndTime "11:06:47 PDT"]
[Termination "ApacheSVD won on time"]

1. e4 {[%clk 0:03:00.9]} 1... c5 {[%clk 0:02:58.7]} 2. Nf3 {[%clk 0:03:00.7]}
2... Nc6 {[%clk 0:02:58.5]} 3. d4 {[%clk 0:03:00.1]} 3... cxd4 {[%clk
0:02:58.2]} 4. Nxd4 {[%clk 0:03:01]} 4... e5 {[%clk 0:02:58.6]} 5. Nb5 {[%clk
0:03:00.9]} 5... d6 {[%clk 0:02:58.8]} 6. c4 {[%clk 0:03:01.1]} 6... Be7 {[%clk
0:02:58.5]} 7. N1c3 {[%clk 0:03:00.9]} 7... a6 {[%clk 0:02:58.9]} 8. Na3 {[%clk
0:03:00.9]} 8... f5 {[%clk 0:02:59.5]} 9. Bd3 {[%clk 0:03:00.1]} 9... f4 {[%clk
0:02:59.1]} 10. Nd5 {[%clk 0:02:58.4]} 10... Nf6 {[%clk 0:02:55.1]} 11. Nxf6+
{[%clk 0:02:56.5]} 11... Bxf6 {[%clk 0:02:54.9]} 12. Nb1 {[%clk 0:02:57.4]}
12... O-O {[%clk 0:02:47.3]} 13. Nc3 {[%clk 0:02:56.7]} 13... Nd4 {[%clk
0:02:46.4]} 14. Ne2 {[%clk 0:02:50.7]} 14... f3 {[%clk 0:02:43.2]} 15. Nxd4
{[%clk 0:02:50.6]} 15... fxg2 {[%clk 0:02:43.4]} 16. Rg1 {[%clk 0:02:50.7]}
16... exd4 {[%clk 0:02:42.7]} 17. Rxg2 {[%clk 0:02:51]} 17... Be6 {[%clk
0:02:34.3]} 18. Qh5 {[%clk 0:02:34.5]} 18... Be5 {[%clk 0:02:00.4]} 19. Bg5
{[%clk 0:02:26.8]} 19... Qe8 {[%clk 0:01:41.6]} 20. Qh4 {[%clk 0:02:17.9]} 20...
Kh8 {[%clk 0:01:40.3]} 21. f4 {[%clk 0:02:11.9]} 21... Bf6 {[%clk 0:01:15.9]}
22. e5 {[%clk 0:02:03.5]} 22... Bg8 {[%clk 0:01:09]} 23. Bxf6 {[%clk 0:01:34.1]}
23... Rxf6 {[%clk 0:00:59.2]} 24. Rxg7 {[%clk 0:01:34.1]} 24... Rf7 {[%clk
0:00:30.4]} 25. Bg6 {[%clk 0:00:55.9]} 25... Rxg7 {[%clk 0:00:25.9]} 26. Bxe8
{[%clk 0:00:56]} 26... Rxe8 {[%clk 0:00:26.1]} 27. O-O-O {[%clk 0:00:52.4]}
27... dxe5 {[%clk 0:00:26.1]} 28. Qf6 {[%clk 0:00:52.7]} 28... Re6 {[%clk
0:00:23.3]} 29. Qf5 {[%clk 0:00:40.3]} 29... Rc7 {[%clk 0:00:22.4]} 30. Rg1
{[%clk 0:00:36.9]} 30... Rxc4+ {[%clk 0:00:15.2]} 31. Kd2 {[%clk 0:00:36.7]}
31... e4 {[%clk 0:00:05]} 32. Rxg8+ {[%clk 0:00:36]} 32... Kxg8 {[%clk
0:00:05.4]} 33. Qxe6+ {[%clk 0:00:36.7]} 33... Kg7 {[%clk 0:00:06]} 34. Qxc4
{[%clk 0:00:37.5]} 34... e3+ {[%clk 0:00:06.5]} 35. Ke2 {[%clk 0:00:37.9]} 35...
Kg6 {[%clk 0:00:03]} 36. Qxd4 {[%clk 0:00:37.8]} 36... Kf5 {[%clk 0:00:02.6]}
37. Qxe3 {[%clk 0:00:38.7]} 1-0

[Event "*** SCC Grand Prix: Titled Tuesday Blitz"]
[Site "Chess.com"]
[Date "2020.10.13"]
[Round "6"]
[White "alejanchess73"]
[Black "rugbyclub"]
[Result "1-0"]
[WhiteElo "2384"]
[BlackElo "2213"]
[TimeControl "180+1"]
[EndTime "11:06:49 PDT"]
[Termination "alejanchess73 won by checkmate"]

1. d4 {[%clk 0:03:00.9]} 1... Nf6 {[%clk 0:02:57]} 2. c4 {[%clk 0:03:00.7]} 2...
e6 {[%clk 0:02:53.6]} 3. g3 {[%clk 0:03:00.5]} 3... d5 {[%clk 0:02:46.9]} 4. Nf3
{[%clk 0:02:58.6]} 4... Bb4+ {[%clk 0:02:45.4]} 5. Bd2 {[%clk 0:02:55.5]} 5...
a5 {[%clk 0:02:38.4]} 6. Bg2 {[%clk 0:02:54.3]} 6... O-O {[%clk 0:02:36.7]} 7.
O-O {[%clk 0:02:54]} 7... dxc4 {[%clk 0:02:36.7]} 8. Bxb4 {[%clk 0:02:46.7]}
8... axb4 {[%clk 0:02:36]} 9. Ne5 {[%clk 0:02:47.3]} 9... Nc6 {[%clk 0:02:24.1]}
10. Nxc6 {[%clk 0:02:28.4]} 10... bxc6 {[%clk 0:02:23.9]} 11. Bxc6 {[%clk
0:02:28.4]} 11... Rb8 {[%clk 0:02:24]} 12. e3 {[%clk 0:02:22.7]} 12... Bb7
{[%clk 0:02:21.5]} 13. Bxb7 {[%clk 0:02:22.4]} 13... Rxb7 {[%clk 0:02:22.1]} 14.
Nd2 {[%clk 0:02:23.1]} 14... Qd5 {[%clk 0:02:17.5]} 15. Qc2 {[%clk 0:02:19.2]}
15... c5 {[%clk 0:02:08.4]} 16. dxc5 {[%clk 0:02:17.5]} 16... Qxc5 {[%clk
0:02:06.7]} 17. Nxc4 {[%clk 0:02:14.1]} 17... Rc8 {[%clk 0:02:05.3]} 18. b3
{[%clk 0:02:14.5]} 18... Rbc7 {[%clk 0:02:04.3]} 19. Rfd1 {[%clk 0:02:09.9]}
19... Qh5 {[%clk 0:02:01.5]} 20. Qd3 {[%clk 0:02:03.1]} 20... h6 {[%clk
0:01:54.4]} 21. Qf1 {[%clk 0:01:59.7]} 21... Ng4 {[%clk 0:01:37.6]} 22. Qg2
{[%clk 0:01:58.5]} 22... Ne5 {[%clk 0:01:33.8]} 23. Nd6 {[%clk 0:01:41.1]} 23...
Rd8 {[%clk 0:01:25.2]} 24. g4 {[%clk 0:01:06.4]} 24... Nxg4 {[%clk 0:01:19.5]}
25. Nc4 {[%clk 0:01:03.5]} 25... Rcd7 {[%clk 0:01:15.3]} 26. Rxd7 {[%clk
0:01:02.8]} 26... Rxd7 {[%clk 0:01:15.2]} 27. Rc1 {[%clk 0:00:55.1]} 27... Rd5
{[%clk 0:00:47]} 28. h3 {[%clk 0:00:55.1]} 28... Nf6 {[%clk 0:00:35.1]} 29. f4
{[%clk 0:00:50.5]} 29... Kh7 {[%clk 0:00:20.6]} 30. Kh2 {[%clk 0:00:48]} 30...
g5 {[%clk 0:00:17.1]} 31. Rg1 {[%clk 0:00:45.8]} 31... g4 {[%clk 0:00:12.6]} 32.
Ne5 {[%clk 0:00:41.7]} 32... g3+ {[%clk 0:00:07.3]} 33. Qxg3 {[%clk 0:00:31.9]}
33... Rd2+ {[%clk 0:00:07.1]} 34. Kh1 {[%clk 0:00:30.1]} 34... Ne8 {[%clk
0:00:04.4]} 35. Qg8# {[%clk 0:00:28.9]} 1-0

[Event "*** SCC Grand Prix: Titled Tuesday Blitz"]
[Site "Chess.com"]
[Date "2020.10.13"]
[Round "6"]
[White "swimmerchess"]
[Black "Margency"]
[Result "1-0"]
[WhiteElo "2778"]
[BlackElo "2604"]
[TimeControl "180+1"]
[EndTime "11:06:50 PDT"]
[Termination "swimmerchess won by resignation"]

1. e4 {[%clk 0:03:00.9]} 1... c5 {[%clk 0:02:56.7]} 2. Nf3 {[%clk 0:03:00.8]}
2... d6 {[%clk 0:02:56.5]} 3. d4 {[%clk 0:03:01.4]} 3... cxd4 {[%clk 0:02:57.4]}
4. Nxd4 {[%clk 0:03:02]} 4... Nf6 {[%clk 0:02:58.1]} 5. Nc3 {[%clk 0:03:02.7]}
5... a6 {[%clk 0:02:58.6]} 6. Bg5 {[%clk 0:03:03.3]} 6... e6 {[%clk 0:02:59.1]}
7. f4 {[%clk 0:03:03.8]} 7... Qb6 {[%clk 0:02:59.6]} 8. Qd2 {[%clk 0:03:03.9]}
8... Nc6 {[%clk 0:03:00]} 9. Bxf6 {[%clk 0:03:01.9]} 9... gxf6 {[%clk
0:02:59.8]} 10. Nb3 {[%clk 0:03:02.5]} 10... Bd7 {[%clk 0:02:59.7]} 11. O-O-O
{[%clk 0:03:02.5]} 11... O-O-O {[%clk 0:02:59.8]} 12. Be2 {[%clk 0:03:01.9]}
12... h5 {[%clk 0:03:00.1]} 13. Rhf1 {[%clk 0:03:02]} 13... Kb8 {[%clk
0:02:55.8]} 14. Rf3 {[%clk 0:03:01]} 14... Rc8 {[%clk 0:02:48.6]} 15. Bf1 {[%clk
0:02:57.5]} 15... Be7 {[%clk 0:02:42.3]} 16. Kb1 {[%clk 0:02:55.6]} 16... h4
{[%clk 0:02:32.4]} 17. Rd3 {[%clk 0:02:52.8]} 17... Nb4 {[%clk 0:02:23.3]} 18.
Rh3 {[%clk 0:02:44.9]} 18... Nc6 {[%clk 0:02:16.2]} 19. a3 {[%clk 0:02:33.3]}
19... Rcg8 {[%clk 0:02:04.7]} 20. Rd3 {[%clk 0:02:27.2]} 20... Bc8 {[%clk
0:01:57.7]} 21. Na2 {[%clk 0:02:24.3]} 21... Qg1 {[%clk 0:01:53]} 22. h3 {[%clk
0:02:19.3]} 22... Rg3 {[%clk 0:01:45.6]} 23. Rxg3 {[%clk 0:02:15.2]} 23... hxg3
{[%clk 0:01:46.5]} 24. Bxa6 {[%clk 0:02:16.1]} 24... Qb6 {[%clk 0:01:38.5]} 25.
Bf1 {[%clk 0:02:14.6]} 25... Rh5 {[%clk 0:01:18.4]} 26. Nb4 {[%clk 0:02:08.4]}
26... Nxb4 {[%clk 0:01:15.3]} 27. axb4 {[%clk 0:02:09.3]} 27... d5 {[%clk
0:01:09.5]} 28. Qe2 {[%clk 0:01:55.3]} 28... Rh4 {[%clk 0:01:08.4]} 29. exd5
{[%clk 0:01:55.1]} 29... Rxf4 {[%clk 0:01:02.8]} 30. dxe6 {[%clk 0:01:55.2]}
30... Bxe6 {[%clk 0:01:00.4]} 31. b5 {[%clk 0:01:50.6]} 31... Bd6 {[%clk
0:00:51.5]} 32. Nd2 {[%clk 0:01:44.7]} 32... Be5 {[%clk 0:00:41]} 33. Nf3 {[%clk
0:01:39.7]} 33... Qa5 {[%clk 0:00:21.9]} 34. Nxe5 {[%clk 0:01:31]} 34... Ra4
{[%clk 0:00:21.8]} 35. c4 {[%clk 0:01:08.6]} 35... Ra1+ {[%clk 0:00:11.4]} 36.
Kc2 {[%clk 0:01:08.6]} 36... Qa4+ {[%clk 0:00:11.5]} 37. Kd2 {[%clk 0:01:08.9]}
37... Qb4+ {[%clk 0:00:10.9]} 38. Ke3 {[%clk 0:01:08.9]} 38... Rxd1 {[%clk
0:00:10.1]} 39. Qxd1 {[%clk 0:01:06]} 39... Qxb2 {[%clk 0:00:09.9]} 40. Qd8+
{[%clk 0:00:59.1]} 40... Ka7 {[%clk 0:00:09.9]} 41. b6+ {[%clk 0:00:57.9]} 41...
Qxb6+ {[%clk 0:00:04.8]} 42. Qxb6+ {[%clk 0:00:58.8]} 42... Kxb6 {[%clk
0:00:05.7]} 43. Nf3 {[%clk 0:00:57.1]} 43... Kc5 {[%clk 0:00:04.8]} 44. h4
{[%clk 0:00:57.2]} 1-0

[Event "*** SCC Grand Prix: Titled Tuesday Blitz"]
[Site "Chess.com"]
[Date "2020.10.13"]
[Round "6"]
[White "CaspiIsrael"]
[Black "mapleaff"]
[Result "1-0"]
[WhiteElo "2594"]
[BlackElo "2362"]
[TimeControl "180+1"]
[EndTime "11:06:54 PDT"]
[Termination "CaspiIsrael won on time"]

1. e4 {[%clk 0:03:00.9]} 1... e5 {[%clk 0:02:59.1]} 2. Nf3 {[%clk 0:02:59.6]}
2... Nc6 {[%clk 0:02:59.4]} 3. Bb5 {[%clk 0:02:58.1]} 3... a6 {[%clk 0:02:57.4]}
4. Ba4 {[%clk 0:02:58.6]} 4... Nf6 {[%clk 0:02:56.9]} 5. O-O {[%clk 0:02:55.9]}
5... Be7 {[%clk 0:02:56.9]} 6. Re1 {[%clk 0:02:54.6]} 6... b5 {[%clk 0:02:56]}
7. Bb3 {[%clk 0:02:54.5]} 7... O-O {[%clk 0:02:56.2]} 8. c3 {[%clk 0:02:53.9]}
8... d5 {[%clk 0:02:56.4]} 9. exd5 {[%clk 0:02:54.8]} 9... Nxd5 {[%clk
0:02:56.6]} 10. Nxe5 {[%clk 0:02:55]} 10... Nxe5 {[%clk 0:02:57.5]} 11. Rxe5
{[%clk 0:02:55.6]} 11... c6 {[%clk 0:02:57.5]} 12. d3 {[%clk 0:02:55]} 12... Bd6
{[%clk 0:02:57.4]} 13. Re1 {[%clk 0:02:50.2]} 13... Bf5 {[%clk 0:02:57.2]} 14.
Qf3 {[%clk 0:02:50.2]} 14... Qh4 {[%clk 0:02:56.9]} 15. g3 {[%clk 0:02:50.4]}
15... Qh3 {[%clk 0:02:56.8]} 16. Nd2 {[%clk 0:02:43.6]} 16... Rae8 {[%clk
0:02:45.5]} 17. Ne4 {[%clk 0:02:41.5]} 17... Bg4 {[%clk 0:02:32.3]} 18. Qg2
{[%clk 0:02:39.7]} 18... Qxg2+ {[%clk 0:02:19.5]} 19. Kxg2 {[%clk 0:02:40.6]}
19... f5 {[%clk 0:02:15.6]} 20. h3 {[%clk 0:02:08.8]} 20... fxe4 {[%clk
0:02:09.1]} 21. hxg4 {[%clk 0:02:06.4]} 21... exd3 {[%clk 0:02:07]} 22. Bd2
{[%clk 0:02:05.5]} 22... Bc5 {[%clk 0:02:01.7]} 23. f4 {[%clk 0:01:54.8]} 23...
g6 {[%clk 0:01:22.4]} 24. Kf3 {[%clk 0:01:38.7]} 24... Kg7 {[%clk 0:01:18.3]}
25. g5 {[%clk 0:01:22.3]} 25... h5 {[%clk 0:01:10.6]} 26. c4 {[%clk 0:01:10.5]}
26... bxc4 {[%clk 0:01:05.6]} 27. Bxc4 {[%clk 0:01:11.4]} 27... Bd4 {[%clk
0:00:52.5]} 28. Bxd3 {[%clk 0:00:55.8]} 28... Bxb2 {[%clk 0:00:51.3]} 29. Rab1
{[%clk 0:00:55.5]} 29... Bc3 {[%clk 0:00:43.2]} 30. Bxc3+ {[%clk 0:00:49.5]}
30... Nxc3 {[%clk 0:00:44.1]} 31. Rb7+ {[%clk 0:00:49.6]} 31... Kg8 {[%clk
0:00:33.1]} 32. Rxe8 {[%clk 0:00:47.1]} 32... Rxe8 {[%clk 0:00:34]} 33. Bxg6
{[%clk 0:00:47.3]} 33... Rd8 {[%clk 0:00:20.1]} 34. Bf7+ {[%clk 0:00:42.2]}
34... Kf8 {[%clk 0:00:16.8]} 35. Bc4 {[%clk 0:00:41.6]} 35... a5 {[%clk
0:00:09.4]} 36. g6 {[%clk 0:00:40.9]} 36... Nd5 {[%clk 0:00:06.9]} 37. f5 {[%clk
0:00:38.7]} 37... Re8 {[%clk 0:00:03.5]} 38. f6 {[%clk 0:00:37.4]} 1-0

[Event "*** SCC Grand Prix: Titled Tuesday Blitz"]
[Site "Chess.com"]
[Date "2020.10.13"]
[Round "6"]
[White "PawnEatingZombie"]
[Black "MF1966Idrisov"]
[Result "0-1"]
[WhiteElo "2178"]
[BlackElo "2336"]
[TimeControl "180+1"]
[EndTime "11:06:54 PDT"]
[Termination "MF1966Idrisov won on time"]

1. d4 {[%clk 0:03:00.9]} 1... d5 {[%clk 0:02:59.5]} 2. c4 {[%clk 0:03:00.8]}
2... c6 {[%clk 0:02:59.5]} 3. Nc3 {[%clk 0:03:00.6]} 3... Nf6 {[%clk 0:02:59.6]}
4. e3 {[%clk 0:03:00.7]} 4... g6 {[%clk 0:02:59.7]} 5. Nf3 {[%clk 0:02:59.3]}
5... Bg7 {[%clk 0:02:59.7]} 6. Bd3 {[%clk 0:02:59.1]} 6... O-O {[%clk
0:02:59.4]} 7. O-O {[%clk 0:02:59.3]} 7... a6 {[%clk 0:02:59.5]} 8. Ne5 {[%clk
0:02:45.8]} 8... b5 {[%clk 0:02:53.5]} 9. b3 {[%clk 0:02:44.2]} 9... Bb7 {[%clk
0:02:51.6]} 10. Bb2 {[%clk 0:02:31.3]} 10... Nbd7 {[%clk 0:02:50.3]} 11. f4
{[%clk 0:02:22.7]} 11... Rc8 {[%clk 0:02:45]} 12. c5 {[%clk 0:02:21.9]} 12... b4
{[%clk 0:02:27.4]} 13. Ne2 {[%clk 0:02:08.1]} 13... Ne4 {[%clk 0:02:27]} 14. g4
{[%clk 0:01:35.5]} 14... Nxe5 {[%clk 0:02:17.8]} 15. fxe5 {[%clk 0:01:34.8]}
15... f6 {[%clk 0:02:15.9]} 16. e6 {[%clk 0:01:21.7]} 16... Ra8 {[%clk
0:02:11.2]} 17. Bxe4 {[%clk 0:01:05.2]} 17... dxe4 {[%clk 0:02:10.5]} 18. Ng3
{[%clk 0:01:05.7]} 18... Qd5 {[%clk 0:02:04.6]} 19. Qc2 {[%clk 0:01:01.2]} 19...
f5 {[%clk 0:02:00.8]} 20. Qc4 {[%clk 0:00:53.5]} 20... Bc8 {[%clk 0:01:26.1]}
21. Qxd5 {[%clk 0:00:52.4]} 21... cxd5 {[%clk 0:01:25.2]} 22. gxf5 {[%clk
0:00:52.9]} 22... gxf5 {[%clk 0:01:15.3]} 23. Nxf5 {[%clk 0:00:52.5]} 23... Bf6
{[%clk 0:01:15.3]} 24. Nh6+ {[%clk 0:00:23.8]} 24... Kg7 {[%clk 0:01:14.2]} 25.
Ng4 {[%clk 0:00:24.4]} 25... Bg5 {[%clk 0:01:07.4]} 26. Rxf8 {[%clk 0:00:23.2]}
26... Kxf8 {[%clk 0:01:07.4]} 27. Rf1+ {[%clk 0:00:23.6]} 27... Kg8 {[%clk
0:00:58.6]} 28. Rf5 {[%clk 0:00:24.5]} 28... h6 {[%clk 0:00:53.7]} 29. Rxd5
{[%clk 0:00:23.8]} 29... Bxe6 {[%clk 0:00:53]} 30. Rxg5+ {[%clk 0:00:18.2]}
30... hxg5 {[%clk 0:00:52.3]} 31. Ne5 {[%clk 0:00:14.8]} 31... a5 {[%clk
0:00:50.3]} 32. Bc1 {[%clk 0:00:11.4]} 32... a4 {[%clk 0:00:49.5]} 33. Bd2
{[%clk 0:00:11.3]} 33... Bxb3 {[%clk 0:00:45.6]} 34. Bxb4 {[%clk 0:00:08.4]}
34... Bxa2 {[%clk 0:00:40.8]} 35. c6 {[%clk 0:00:07.3]} 35... Be6 {[%clk
0:00:38.9]} 36. Ba3 {[%clk 0:00:03.5]} 36... Rb8 {[%clk 0:00:35.6]} 37. h4
{[%clk 0:00:01.7]} 37... gxh4 {[%clk 0:00:34.2]} 38. Ng6 {[%clk 0:00:01.3]}
38... Kf7 {[%clk 0:00:32]} 0-1

[Event "*** SCC Grand Prix: Titled Tuesday Blitz"]
[Site "Chess.com"]
[Date "2020.10.13"]
[Round "6"]
[White "HanSchut"]
[Black "Sesleria"]
[Result "0-1"]
[WhiteElo "2204"]
[BlackElo "2033"]
[TimeControl "180+1"]
[EndTime "11:06:55 PDT"]
[Termination "Sesleria won by checkmate"]

1. e4 {[%clk 0:03:00.9]} 1... c5 {[%clk 0:02:59.4]} 2. Nf3 {[%clk 0:03:00.9]}
2... d6 {[%clk 0:02:59.2]} 3. d4 {[%clk 0:03:00.9]} 3... cxd4 {[%clk 0:02:59.6]}
4. Nxd4 {[%clk 0:03:01.5]} 4... Nf6 {[%clk 0:03:00.2]} 5. f3 {[%clk 0:03:01.7]}
5... a6 {[%clk 0:02:59.3]} 6. c4 {[%clk 0:03:01.6]} 6... e6 {[%clk 0:02:55.5]}
7. Nc3 {[%clk 0:03:01.2]} 7... Be7 {[%clk 0:02:56]} 8. Be3 {[%clk 0:03:00]} 8...
Nbd7 {[%clk 0:02:54.2]} 9. Rc1 {[%clk 0:02:59.6]} 9... O-O {[%clk 0:02:48.7]}
10. Be2 {[%clk 0:02:59.6]} 10... Qc7 {[%clk 0:02:42.3]} 11. O-O {[%clk
0:02:58.5]} 11... b6 {[%clk 0:02:38.3]} 12. Qd2 {[%clk 0:02:58.2]} 12... Bb7
{[%clk 0:02:37.8]} 13. Rfd1 {[%clk 0:02:58.6]} 13... Rac8 {[%clk 0:02:36.9]} 14.
Bf1 {[%clk 0:02:59.1]} 14... Qb8 {[%clk 0:02:36.9]} 15. Qf2 {[%clk 0:02:59.5]}
15... Kh8 {[%clk 0:02:35.4]} 16. Kh1 {[%clk 0:02:59.3]} 16... Rg8 {[%clk
0:02:35.2]} 17. b4 {[%clk 0:02:59.2]} 17... g5 {[%clk 0:02:35.1]} 18. Nb3 {[%clk
0:02:59.2]} 18... Ne5 {[%clk 0:02:18.4]} 19. Na4 {[%clk 0:02:48.8]} 19... b5
{[%clk 0:02:08.1]} 20. Nb6 {[%clk 0:02:33.7]} 20... Rcd8 {[%clk 0:01:41.9]} 21.
cxb5 {[%clk 0:02:25.9]} 21... axb5 {[%clk 0:01:34]} 22. Bxb5 {[%clk 0:02:22.7]}
22... g4 {[%clk 0:01:33.1]} 23. Nd2 {[%clk 0:01:54.8]} 23... d5 {[%clk
0:00:53.3]} 24. f4 {[%clk 0:01:38.5]} 24... g3 {[%clk 0:00:52.3]} 25. hxg3
{[%clk 0:01:30.7]} 25... Neg4 {[%clk 0:00:37.4]} 26. Qe1 {[%clk 0:01:25.3]}
26... dxe4 {[%clk 0:00:35.2]} 27. a3 {[%clk 0:01:10.8]} 27... Rg6 {[%clk
0:00:34]} 28. Kg1 {[%clk 0:00:59.9]} 28... Nd5 {[%clk 0:00:26.8]} 29. Bd4+
{[%clk 0:00:48.1]} 29... Kg8 {[%clk 0:00:26]} 30. Nxe4 {[%clk 0:00:41.3]} 30...
Nxf4 {[%clk 0:00:21.4]} 31. Nf2 {[%clk 0:00:14.9]} 31... Nxg2 {[%clk 0:00:18.8]}
32. Nxg4 {[%clk 0:00:10.5]} 32... Nxe1 {[%clk 0:00:17.8]} 33. Nf6+ {[%clk
0:00:08.8]} 33... Bxf6 {[%clk 0:00:18.2]} 34. Bxf6 {[%clk 0:00:09]} 34... Qxg3+
{[%clk 0:00:17.8]} 35. Kf1 {[%clk 0:00:09.5]} 35... Rxf6+ {[%clk 0:00:17]} 36.
Ke2 {[%clk 0:00:10.4]} 36... Rf2+ {[%clk 0:00:16.5]} 37. Kxe1 {[%clk 0:00:10.3]}
37... Qg1+ {[%clk 0:00:16.9]} 38. Bf1 {[%clk 0:00:08.9]} 38... Qxf1# {[%clk
0:00:17.4]} 0-1

[Event "*** SCC Grand Prix: Titled Tuesday Blitz"]
[Site "Chess.com"]
[Date "2020.10.13"]
[Round "6"]
[White "Heineccius"]
[Black "Manukyan_Artak"]
[Result "1-0"]
[WhiteElo "2516"]
[BlackElo "2323"]
[TimeControl "180+1"]
[EndTime "11:06:57 PDT"]
[Termination "Heineccius won by resignation"]

1. d4 {[%clk 0:03:00.9]} 1... Nf6 {[%clk 0:02:36.4]} 2. c4 {[%clk 0:02:59.8]}
2... e6 {[%clk 0:02:36.2]} 3. Nc3 {[%clk 0:02:57.5]} 3... Bb4 {[%clk 0:02:36]}
4. g3 {[%clk 0:02:56.4]} 4... d5 {[%clk 0:02:35.4]} 5. Bg2 {[%clk 0:02:56.2]}
5... O-O {[%clk 0:02:34.6]} 6. Nf3 {[%clk 0:02:56.8]} 6... dxc4 {[%clk
0:02:32.4]} 7. O-O {[%clk 0:02:57.3]} 7... Bxc3 {[%clk 0:02:30.6]} 8. bxc3
{[%clk 0:02:55.8]} 8... Nbd7 {[%clk 0:02:30.4]} 9. a4 {[%clk 0:02:53.7]} 9... a5
{[%clk 0:02:30]} 10. Nd2 {[%clk 0:02:38.6]} 10... Nb6 {[%clk 0:02:28.7]} 11. Qc2
{[%clk 0:02:36.8]} 11... c6 {[%clk 0:02:18.8]} 12. Ba3 {[%clk 0:02:31.8]} 12...
Re8 {[%clk 0:02:18.4]} 13. Bc5 {[%clk 0:02:31.8]} 13... Nfd7 {[%clk 0:02:18.3]}
14. Rfd1 {[%clk 0:02:29]} 14... Qg5 {[%clk 0:02:07.5]} 15. h4 {[%clk 0:02:19.9]}
15... Qg6 {[%clk 0:02:06.1]} 16. Be4 {[%clk 0:02:09.1]} 16... f5 {[%clk
0:02:05.5]} 17. Bg2 {[%clk 0:02:07.5]} 17... e5 {[%clk 0:01:58]} 18. e3 {[%clk
0:02:04.3]} 18... e4 {[%clk 0:01:34.8]} 19. Bf1 {[%clk 0:01:57.8]} 19... Nxc5
{[%clk 0:01:19.9]} 20. dxc5 {[%clk 0:01:57]} 20... Nd5 {[%clk 0:01:20.1]} 21.
Nxc4 {[%clk 0:01:57.1]} 21... f4 {[%clk 0:01:15.2]} 22. exf4 {[%clk 0:01:50.3]}
22... Nxf4 {[%clk 0:01:12.1]} 23. Nd6 {[%clk 0:01:49.9]} 23... Rf8 {[%clk
0:01:08.6]} 24. Qxe4 {[%clk 0:01:09.4]} 24... Qxe4 {[%clk 0:01:02.4]} 25. Nxe4
{[%clk 0:01:10.3]} 25... Bg4 {[%clk 0:00:44.2]} 26. Rd2 {[%clk 0:00:34.8]} 26...
Ng6 {[%clk 0:00:40.5]} 27. Bc4+ {[%clk 0:00:33.1]} 27... Kh8 {[%clk 0:00:39.7]}
28. Nd6 {[%clk 0:00:32.8]} 28... Ne5 {[%clk 0:00:38.1]} 29. Be2 {[%clk
0:00:27.8]} 29... Bxe2 {[%clk 0:00:31.9]} 30. Rxe2 {[%clk 0:00:27.4]} 30... Nf7
{[%clk 0:00:24.4]} 31. Nxb7 {[%clk 0:00:24.3]} 31... Rfe8 {[%clk 0:00:22.3]} 32.
Rae1 {[%clk 0:00:22.6]} 32... Rxe2 {[%clk 0:00:20.8]} 33. Rxe2 {[%clk
0:00:23.5]} 33... Kg8 {[%clk 0:00:21.2]} 34. Re7 {[%clk 0:00:20.2]} 34... Nh6
{[%clk 0:00:18.6]} 35. Rc7 {[%clk 0:00:20.5]} 35... Ra7 {[%clk 0:00:14.4]} 36.
Rc8+ {[%clk 0:00:19.2]} 36... Kf7 {[%clk 0:00:14.6]} 37. Nd8+ {[%clk 0:00:19.6]}
37... Ke7 {[%clk 0:00:14.6]} 38. Nxc6+ {[%clk 0:00:20.1]} 38... Kd7 {[%clk
0:00:15.4]} 39. Nxa7 {[%clk 0:00:20.8]} 1-0

[Event "*** SCC Grand Prix: Titled Tuesday Blitz"]
[Site "Chess.com"]
[Date "2020.10.13"]
[Round "6"]
[White "Lenyas66"]
[Black "BursaBBSatranc"]
[Result "0-1"]
[WhiteElo "2349"]
[BlackElo "2588"]
[TimeControl "180+1"]
[EndTime "11:06:58 PDT"]
[Termination "BursaBBSatranc won by checkmate"]

1. d4 {[%clk 0:03:00.9]} 1... d5 {[%clk 0:02:27.7]} 2. Bg5 {[%clk 0:03:00]} 2...
h6 {[%clk 0:02:26.4]} 3. Bh4 {[%clk 0:02:59.6]} 3... Nd7 {[%clk 0:02:21.7]} 4.
Nc3 {[%clk 0:02:56.9]} 4... c6 {[%clk 0:02:20.9]} 5. e4 {[%clk 0:02:55.8]} 5...
dxe4 {[%clk 0:02:18.5]} 6. Nxe4 {[%clk 0:02:55.8]} 6... g5 {[%clk 0:02:13.2]} 7.
Bg3 {[%clk 0:02:54.5]} 7... Ngf6 {[%clk 0:02:13.1]} 8. Nxf6+ {[%clk 0:02:45.4]}
8... Nxf6 {[%clk 0:02:14]} 9. Bc4 {[%clk 0:02:38.1]} 9... Bg7 {[%clk 0:02:11.9]}
10. Nf3 {[%clk 0:02:32.8]} 10... Bf5 {[%clk 0:01:51.9]} 11. Ne5 {[%clk
0:02:25.9]} 11... e6 {[%clk 0:01:51.4]} 12. O-O {[%clk 0:02:18.3]} 12... O-O
{[%clk 0:01:48.5]} 13. c3 {[%clk 0:02:02.6]} 13... Ne4 {[%clk 0:01:45.6]} 14.
Qe2 {[%clk 0:01:56]} 14... Nxg3 {[%clk 0:01:20.2]} 15. fxg3 {[%clk 0:01:54.2]}
15... Qd6 {[%clk 0:00:59.7]} 16. g4 {[%clk 0:01:53.1]} 16... Bxe5 {[%clk
0:00:28.9]} 17. dxe5 {[%clk 0:01:43.1]} 17... Qc5+ {[%clk 0:00:27.6]} 18. Kh1
{[%clk 0:01:42.8]} 18... Bg6 {[%clk 0:00:26.8]} 19. Rf6 {[%clk 0:01:41.2]} 19...
Kg7 {[%clk 0:00:21.2]} 20. Raf1 {[%clk 0:01:33.8]} 20... Rad8 {[%clk 0:00:21]}
21. b4 {[%clk 0:01:31.6]} 21... Qe7 {[%clk 0:00:20.5]} 22. Qf2 {[%clk
0:01:17.1]} 22... b5 {[%clk 0:00:19.4]} 23. Bb3 {[%clk 0:01:13]} 23... a6 {[%clk
0:00:19.1]} 24. h4 {[%clk 0:01:10.5]} 24... Qc7 {[%clk 0:00:16.5]} 25. h5 {[%clk
0:01:04.8]} 25... Be4 {[%clk 0:00:14.2]} 26. Bxe6 {[%clk 0:01:03.8]} 26... Qxe5
{[%clk 0:00:12.1]} 27. Rxf7+ {[%clk 0:01:00.3]} 27... Rxf7 {[%clk 0:00:12.2]}
28. Qxf7+ {[%clk 0:01:00]} 28... Kh8 {[%clk 0:00:12.8]} 29. Qe7 {[%clk
0:00:25.1]} 29... Bxg2+ {[%clk 0:00:11]} 30. Kg1 {[%clk 0:00:23.6]} 30... Qe3+
{[%clk 0:00:09.9]} 31. Rf2 {[%clk 0:00:21.5]} 31... Rd1+ {[%clk 0:00:08.3]} 32.
Kxg2 {[%clk 0:00:21.7]} 32... Qe4+ {[%clk 0:00:08]} 33. Kg3 {[%clk 0:00:20.8]}
33... Rd3+ {[%clk 0:00:08.1]} 34. Kh2 {[%clk 0:00:20.2]} 34... Qe5+ {[%clk
0:00:07.3]} 35. Kg2 {[%clk 0:00:19.4]} 35... Qg3+ {[%clk 0:00:05.9]} 36. Kf1
{[%clk 0:00:19.2]} 36... Rd1+ {[%clk 0:00:06]} 37. Ke2 {[%clk 0:00:19.4]} 37...
Qd3# {[%clk 0:00:06.7]} 0-1